bitfinex/quotes_ETHUSD_20250802
["timestamp","ask_amount","ask_price","bid_price","bid_amount"]
[1754139022333,38.78744,3512.6,3512.5,0.002]
[1754139022971,39.24064,3512.6,3512.5,0.002]
[1754139023266,37.75044,3512.6,3512.5,0.002]
[1754139023465,39.23654,3512.6,3512.5,0.002]
[1754139023679,39.67512081,3512.6,3512.5,0.002]
[1754139025233,39.23654,3512.6,3512.5,0.002]
[1754139025868,38.9511,3512.6,3512.5,0.002]
[1754139026060,38.4979,3512.6,3512.5,0.002]
[1754139026459,33.55,3512.6,3512.5,0.002]
[1754139026661,37.459,3512.6,3512.5,0.4714]
[1754139026850,38.009,3512.6,3512.5,0.002]
[1754139027167,8.009,3512.6,3512.5,0.002]
[1754139027379,38.009,3512.6,3512.5,0.002]
[1754139027938,8.009,3512.6,3512.5,0.002]
[1754139028138,38.009,3512.6,3512.5,0.002]
[1754139028583,39.38368081,3512.6,3512.5,0.002]
[1754139030876,44.10068081,3512.6,3512.5,0.002]
[1754139031095,43.6621,3512.6,3512.5,0.002]
[1754139031380,34.0329,3512.6,3512.5,0.002]
[1754139031547,33.55,3512.6,3512.5,0.002]
[1754139031742,38.005,3512.6,3512.5,0.002]
[1754139031972,44.855,3512.6,3512.5,0.002]
[1754139032553,40.4,3512.6,3512.5,0.002]
[1754139032778,44.854,3512.6,3512.5,0.002]
[1754139033292,14.854,3512.6,3512.5,0.002]
[1754139033598,44.854,3512.6,3512.5,0.002]
[1754139037426,10.4,3512.6,3512.5,0.93]
[1754139037566,44.85,3512.6,3512.5,0.93]
[1754139037884,44.3,3512.6,3512.5,0.93]
[1754139038651,9.85,3512.6,3512.5,0.93]
[1754139038857,11.297,3512.6,3512.5,0.93]
[1754139039056,14.297,3512.6,3512.5,0.93]
[1754139042451,44.847,3512.6,3512.5,0.002]
[1754139042589,45.7831,3512.6,3512.5,0.002]
[1754139042790,45.3299,3512.6,3512.5,0.002]
[1754139043002,45.7831,3512.6,3512.5,0.002]
[1754139043199,48.19636674,3512.6,3512.5,0.002]
[1754139043498,47.4961,3512.6,3512.5,0.002]
[1754139044019,50.34299403,3512.6,3512.5,0.002]
[1754139044338,63.18899403,3512.6,3512.5,0.002]
[1754139044894,60.3421,3512.6,3512.5,0.002]
[1754139045117,47.4961,3512.6,3512.5,0.002]
[1754139046341,63.88926077,3512.6,3512.5,0.002]
[1754139047910,66.89326077,3512.6,3512.5,0.002]
[1754139048822,66.58615817,3512.6,3512.5,0.002]
[1754139049221,73.60615817,3512.6,3512.5,0.002]
[1754139050652,71.04506414,3512.6,3512.5,0.002]
[1754139050829,52.3419,3512.6,3512.5,0.002]
[1754139051393,55.18879403,3512.6,3512.5,0.002]
[1754139051819,52.3419,3512.6,3512.5,0.002]
[1754139052554,47.42,3512.6,3512.5,0.002]
[1754139052846,52.3211,3512.6,3512.5,0.002]
[1754139053037,55.63819403,3512.6,3512.5,0.002]
[1754139053343,52.7913,3512.6,3512.5,0.002]
[1754139054658,51.858,3512.6,3512.5,0.002]
[1754139055535,51.857,3512.6,3512.5,0.002]
[1754139055748,51.857,3512.6,3512.5,0.4373]
[1754139055955,39.85,3512.6,3512.5,0.9085]
[1754139056129,44.288,3512.6,3512.5,0.9085]
[1754139057761,14.288,3512.6,3512.5,0.9085]
[1754139057929,44.288,3512.6,3512.5,0.9085]
[1754139058661,14.287,3512.6,3512.5,0.9085]
[1754139058824,44.287,3512.6,3512.5,0.9085]
[1754139060731,14.287,3512.6,3512.5,0.9085]
[1754139061075,39.85,3512.6,3512.5,0.9085]
[1754139061278,44.283,3512.6,3512.5,0.9085]
[1754139061833,14.283,3512.6,3512.5,0.9085]
[1754139062034,44.283,3512.6,3512.5,0.9085]
[1754139062550,39.85,3512.6,3512.5,0.9085]
[1754139062766,44.283,3512.6,3512.5,0.9085]
[1754139063457,41.283,3512.6,3512.5,0.9085]
[1754139063767,44.28,3512.6,3512.5,0.9085]
[1754139064858,14.28,3512.6,3512.5,0.9085]
[1754139065066,44.28,3512.6,3512.5,0.9085]
[1754139066441,44.28,3512.6,3512.5,0.4373]
[1754139066860,44.28,3512.6,3512.5,0.002]
[1754139067173,44.7431,3512.6,3512.5,0.002]
[1754139067742,45.2931,3512.6,3512.5,0.002]
[1754139068141,45.7633,3512.6,3512.5,0.002]
[1754139068562,45.2931,3512.6,3512.5,0.002]
[1754139071171,15.2931,3512.6,3512.5,0.002]
[1754139071390,45.2931,3512.6,3512.5,0.002]
[1754139071902,47.4763,3512.6,3512.5,0.002]
[1754139072210,51.02346077,3512.6,3512.5,0.002]
[1754139072359,47.86946414,3512.6,3512.5,0.002]
[1754139074195,17.86946414,3512.6,3512.5,0.002]
[1754139074696,47.86946414,3512.6,3512.5,0.002]
[1754139075623,66.56635817,3512.6,3512.5,0.002]
[1754139075963,63.71946414,3512.6,3512.5,0.002]
[1754139076159,63.3263,3512.6,3512.5,0.002]
[1754139076705,55.8923,3512.6,3512.5,0.002]
[1754139076862,55.8923,3512.6,3512.5,0.9085]
[1754139076863,41.269,3512.6,3512.5,0.9085]
[1754139078717,44.269,3512.6,3512.5,0.9085]
[1754139084949,37.419,3512.6,3512.5,0.9085]
[1754139085649,37.419,3512.6,3512.5,0.9355]
[1754139085963,4.419,3512.6,3512.5,0.9355]
[1754139088342,0.001,3512.9,3512.5,0.9355]
[1754139088559,4.419,3512.8,3512.6,0.9561]
[1754139088720,4.419,3512.8,3512.5,0.002]
[1754139088922,4.419,3512.8,3512.6,0.9561]
[1754139089221,4.419,3512.8,3512.7,0.9561]
[1754139089757,0.001,3512.9,3512.7,9.38013935]
[1754139090103,0.001,3512.9,3512.8,1.92278125]
[1754139090232,0.001,3512.9,3512.8,4.92278125]
[1754139090435,0.001,3512.9,3512.8,4.89431394]
[1754139090961,0.001,3512.9,3512.8,1.92278125]
[1754139091158,0.001,3512.9,3512.8,1.89431394]
[1754139098889,0.001,3512.9,3512.5,0.002]
[1754139099053,0.4914,3512.9,3512.5,0.002]
[1754139099646,0.4914,3512.9,3512.5,0.9581]
[1754139099647,0.001,3512.9,3512.5,0.9581]
[1754139099852,0.001,3512.9,3512.6,0.9561]
[1754139100643,0.001,3512.9,3512.7,9.40860747]
[1754139100849,0.001,3512.9,3512.8,1.89716075]
[1754139102792,0.001,3512.9,3512.8,7.35287414]
[1754139106800,0.001,3512.9,3512.8,11.76887414]
[1754139107609,0.001,3513.3,3512.8,11.76887414]
[1754139107800,0.001,3513.3,3513.2,5.45571339]
[1754139108005,0.001,3513.3,3513.2,6.00413138]
[1754139108167,0.001,3513.3,3513.2,6.96023138]
[1754139109279,0.001,3513.3,3513.2,7.07433238]
[1754139110507,0.001,3513.3,3513.2,7.62433238]
[1754139112108,0.001,3513.7,3513.3,0.55]
[1754139112308,0.001,3513.7,3513.6,6.00571339]
[1754139112577,0.001,3513.7,3513.6,10.42071339]
[1754139112774,0.001,3513.7,3513.6,11.34461339]
[1754139112977,0.001,3514.0,3513.7,0.55]
[1754139113215,0.053,3516.3,3513.9,5.45571339]
[1754139113216,0.4517,3515.8,3513.9,5.45571339]
[1754139113417,0.4517,3515.4,3514.3,5.45571339]
[1754139113603,0.4517,3515.1,3514.3,9.87071339]
[1754139113918,0.4517,3515.4,3514.3,11.34461339]
[1754139115411,0.4517,3515.3,3514.3,11.34461339]
[1754139115909,0.4517,3515.1,3514.3,11.34461339]
[1754139118032,0.4517,3515.2,3514.3,11.34461339]
[1754139119235,0.4517,3515.1,3514.3,11.34461339]
[1754139119397,3.0,3515.8,3514.3,11.80391339]
[1754139119607,0.4517,3515.0,3514.3,12.98430473]
[1754139120415,0.4517,3515.1,3514.3,12.06040473]
[1754139120661,3.0,3515.8,3514.3,1.63969134]
[1754139120662,0.4527,3514.4,3514.3,1.63969134]
[1754139120819,0.912,3514.4,3514.3,5.59339134]
[1754139121441,0.4527,3514.4,3514.3,5.59339134]
[1754139121642,0.001,3514.4,3514.3,5.59339134]
[1754139121801,0.001,3514.4,3514.3,6.51729134]
[1754139123050,0.4517,3515.0,3514.3,7.06729134]
[1754139123264,0.911,3515.3,3514.9,5.45571339]
[1754139123403,0.911,3515.3,3515.2,5.45571339]
[1754139123599,0.4517,3515.3,3515.2,5.45571339]
[1754139124043,0.4517,3515.7,3515.2,5.45571339]
[1754139124243,0.4517,3515.7,3515.6,5.45571339]
[1754139124440,7.12902,3517.3,3515.6,5.45571339]
[1754139124641,0.4593,3516.0,3515.6,5.45571339]
[1754139124807,0.4593,3515.9,3515.4,4.413]
[1754139125012,0.911,3515.8,3515.4,4.413]
[1754139125238,0.4517,3515.7,3515.5,1.38970926]
[1754139125747,0.4593,3515.6,3515.5,1.38970926]
[1754139125941,0.4593,3515.6,3515.4,4.413]
[1754139125942,0.911,3515.6,3515.4,4.413]
[1754139126322,0.4517,3515.6,3515.4,4.413]
[1754139126521,0.4593,3515.9,3515.4,4.413]
[1754139126841,0.4517,3515.5,3515.4,4.413]
[1754139127031,0.4593,3515.8,3515.4,5.80270926]
[1754139127202,0.4517,3515.7,3515.4,5.80270926]
[1754139127409,0.4593,3515.7,3515.4,5.80270926]
[1754139127609,0.4517,3515.6,3515.4,5.80270926]
[1754139128011,0.4517,3515.5,3515.4,5.80270926]
[1754139129236,0.911,3515.5,3515.4,5.80270926]
[1754139129936,0.4593,3515.9,3515.4,1.38970926]
[1754139130135,0.911,3515.8,3515.3,4.412]
[1754139130343,0.4517,3515.7,3515.3,4.412]
[1754139130546,0.4517,3515.6,3515.3,4.412]
[1754139131543,0.4517,3515.6,3515.4,0.4593]
[1754139132528,0.4517,3515.5,3515.4,0.4593]
[1754139132826,0.4517,3515.5,3515.4,1.78691313]
[1754139133918,0.001,3515.6,3515.4,1.78691313]
[1754139134112,0.4517,3515.5,3515.4,1.78691313]
[1754139134318,0.4517,3515.5,3515.4,1.32761313]
[1754139134816,0.4517,3515.5,3515.4,1.78691313]
[1754139135351,0.001,3515.6,3515.4,1.78691313]
[1754139135556,0.001,3515.6,3515.5,1.46037444]
[1754139136250,0.001,3515.6,3515.5,1.91967444]
[1754139136614,0.001,3515.6,3515.5,2.35287444]
[1754139136819,0.001,3515.6,3515.5,2.87201989]
[1754139137013,0.001,3515.6,3515.5,2.84357444]
[1754139137320,0.001,3515.6,3515.5,5.87201989]
[1754139137521,0.001,3515.6,3515.5,5.84357444]
[1754139137746,0.001,3515.6,3515.5,10.25357444]
[1754139138317,0.001,3515.6,3515.5,9.32967444]
[1754139139124,0.001,3515.6,3515.5,6.32967444]
[1754139139347,0.001,3515.6,3515.5,6.76287444]
[1754139139547,0.001,3515.6,3515.5,7.25357444]
[1754139142235,0.001,3515.6,3515.5,6.32967444]
[1754139142431,0.001,3515.6,3515.5,7.23897444]
[1754139144856,0.001,3515.6,3515.5,12.68544784]
[1754139145744,0.4772,3515.6,3515.5,11.77514784]
[1754139146057,0.001,3515.6,3515.5,11.77514784]
[1754139147251,0.001,3515.6,3515.5,12.68444784]
[1754139151047,0.001,3515.6,3515.5,11.77414784]
[1754139151360,0.9386,3515.6,3515.5,1.91967444]
[1754139151560,0.9386,3515.6,3515.3,4.408]
[1754139151733,0.9376,3515.5,3514.8,5.4464734]
[1754139151938,0.001,3515.6,3514.9,4.408]
[1754139152243,0.9376,3515.5,3515.1,0.855419]
[1754139152443,0.9376,3515.4,3515.1,5.262419]
[1754139152655,0.9376,3515.3,3515.2,0.5262419]
[1754139153868,0.001,3515.6,3515.2,0.55468978]
[1754139154071,0.001,3515.6,3515.5,5.4464734]
[1754139154267,0.4772,3515.6,3515.5,5.4464734]
[1754139154459,0.4772,3515.6,3515.5,6.48444493]
[1754139155562,0.001,3515.6,3515.5,10.89144493]
[1754139156072,0.001,3515.6,3515.5,11.80074493]
[1754139157270,0.001,3515.6,3515.5,10.89144493]
[1754139158059,0.001,3515.6,3515.5,6.48444493]
[1754139158367,0.001,3515.6,3515.5,6.83147153]
[1754139159739,0.001,3515.6,3515.5,7.38147153]
[1754139162239,0.001,3515.6,3515.5,2.06517153]
[1754139162439,0.001,3515.6,3515.5,6.47117153]
[1754139163440,0.001,3515.6,3515.5,12.27694493]
[1754139163641,0.001,3515.6,3515.5,12.82694493]
[1754139168044,0.001,3515.6,3515.5,15.82694493]
[1754139170483,0.001,3516.0,3515.9,5.9964734]
[1754139170668,0.001,3516.0,3515.9,11.00012074]
[1754139171078,0.001,3516.0,3515.9,11.90942074]
[1754139171677,0.001,3516.0,3515.9,12.38562074]
[1754139176556,0.001,3516.0,3515.9,11.90432074]
[1754139177070,0.001,3516.0,3515.9,12.40402074]
[1754139177269,0.001,3516.0,3515.9,15.40402074]
[1754139178507,0.001,3516.4,3516.0,0.55]
[1754139178710,0.001,3516.4,3516.3,5.9964734]
[1754139178908,0.001,3516.4,3516.3,10.3994734]
[1754139179521,0.4854,3516.4,3516.3,10.8504734]
[1754139179662,0.4854,3516.4,3516.3,6.4474734]
[1754139179862,0.4854,3516.4,3516.3,7.26742495]
[1754139180095,0.4854,3516.4,3516.3,11.66942495]
[1754139180457,0.4854,3516.4,3516.3,7.26742495]
[1754139180658,0.9364,3516.4,3516.3,5.67295155]
[1754139180858,0.9364,3516.4,3516.3,0.451]
[1754139181056,0.9364,3516.4,3516.1,4.402]
[1754139181282,0.9354,3516.3,3516.1,4.402]
[1754139181601,0.9354,3516.2,3516.1,0.0284406]
[1754139181764,0.9354,3516.2,3516.0,4.402]
[1754139181965,0.9354,3516.1,3516.0,4.402]
[1754139182170,0.9354,3516.1,3516.0,1.07036534]
[1754139182374,0.001,3516.4,3516.0,1.09880675]
[1754139182375,0.9364,3516.4,3516.0,1.09880675]
[1754139182572,0.001,3516.4,3516.3,5.4464734]
[1754139182774,0.001,3516.4,3516.3,9.8484734]
[1754139183376,0.9364,3516.4,3516.3,9.8484734]
[1754139183614,0.001,3516.4,3516.3,9.8484734]
[1754139184510,0.9364,3516.4,3516.3,4.402]
[1754139184800,0.9364,3516.4,3516.3,9.8484734]
[1754139185006,0.9364,3516.4,3516.3,10.83332074]
[1754139185393,0.001,3516.4,3516.3,10.83332074]
[1754139189609,0.001,3516.4,3516.3,11.38332074]
[1754139189775,0.001,3516.4,3516.3,12.34432074]
[1754139190872,0.001,3516.4,3516.3,11.88302074]
[1754139191078,0.001,3516.4,3516.3,11.38332074]
[1754139191720,0.001,3516.4,3516.3,12.34432074]
[1754139192104,0.001,3516.4,3516.3,11.88302074]
[1754139193420,0.001,3516.4,3516.3,12.34432074]
[1754139195126,0.001,3516.4,3516.3,11.88302074]
[1754139195302,0.001,3516.4,3516.3,11.38332074]
[1754139195508,0.001,3516.4,3516.3,11.38132074]
[1754139196627,0.001,3516.4,3516.3,11.88102074]
[1754139196805,0.001,3516.4,3516.3,11.38132074]
[1754139197143,0.001,3516.4,3516.3,12.34232074]
[1754139199337,0.001,3516.4,3516.3,11.88102074]
[1754139199638,0.001,3516.4,3516.3,11.88202074]
[1754139199935,0.001,3516.4,3516.3,12.34332074]
[1754139206849,0.001,3516.4,3516.3,11.88202074]
[1754139209249,0.001,3516.4,3516.3,11.38232074]
[1754139209906,0.9576,3516.4,3516.3,0.98684734]
[1754139210107,0.9576,3516.4,3516.3,0.002]
[1754139212045,0.001,3516.4,3516.3,0.03043898]
[1754139212250,0.001,3516.4,3516.3,0.552]
[1754139212431,0.001,3516.4,3516.3,2.12141734]
[1754139213715,0.001,3516.4,3516.3,1.63971734]
[1754139214052,0.4612,3516.4,3516.3,1.63971734]
[1754139214515,0.9576,3516.4,3516.3,4.398]
[1754139215332,0.9576,3516.4,3516.3,0.002]
[1754139215534,0.9576,3516.4,3516.3,4.398]
[1754139219547,0.9576,3516.4,3516.3,0.002]
[1754139219857,0.001,3516.4,3516.3,4.398]
[1754139221158,0.001,3516.4,3516.3,0.002]
[1754139221358,0.4612,3516.4,3516.3,4.398]
[1754139221857,0.9576,3516.4,3516.3,4.398]
[1754139223155,0.9576,3516.4,3516.3,4.397]
[1754139223665,0.001,3516.4,3516.3,4.397]
[1754139223967,0.4612,3516.4,3516.3,4.397]
[1754139225160,0.001,3516.4,3516.3,4.397]
[1754139227967,0.001,3516.4,3516.3,5.42951734]
[1754139228144,0.001,3516.4,3516.3,6.33921734]
[1754139228342,0.001,3516.4,3516.3,8.91121734]
[1754139229174,0.001,3516.4,3516.3,4.03451734]
[1754139229328,0.9576,3516.4,3516.3,3.002]
[1754139229533,0.9576,3516.4,3516.3,7.396]
[1754139230272,0.9576,3516.4,3516.3,0.002]
[1754139234883,0.001,3516.4,3516.3,0.002]
[1754139238556,0.001,3516.4,3516.3,5.4484734]
[1754139238885,0.001,3516.4,3516.3,0.4944]
[1754139239690,0.001,3516.4,3516.3,0.002]
[1754139239896,0.001,3516.4,3516.3,1.58797038]
[1754139240187,0.001,3516.4,3516.3,1.5595314]
[1754139240890,0.001,3516.4,3516.3,1.0891314]
[1754139242367,0.001,3516.4,3516.3,1.5595314]
[1754139242778,0.001,3516.4,3516.3,1.58797038]
[1754139243317,0.001,3516.4,3516.3,1.5595314]
[1754139243667,0.001,3516.4,3516.3,1.58797038]
[1754139243893,0.001,3516.4,3516.3,2.1095314]
[1754139245870,0.001,3516.4,3516.3,2.13797038]
[1754139246710,0.001,3516.4,3516.3,5.13797038]
[1754139248015,0.001,3516.8,3516.4,3.55]
[1754139248183,0.001,3516.8,3516.7,5.9964734]
[1754139248387,0.001,3516.8,3516.7,10.3874734]
[1754139248607,0.001,3516.8,3516.7,10.8578734]
[1754139248812,0.001,3516.8,3516.7,11.3502734]
[1754139249027,0.001,3516.8,3516.7,12.63763911]
[1754139250574,0.001,3516.8,3516.7,13.49246311]
[1754139256941,0.001,3516.8,3516.7,12.52966311]
[1754139257226,0.9526,3516.8,3516.7,2.14218971]
[1754139257384,0.9526,3516.8,3516.6,4.389]
[1754139257587,0.9516,3516.7,3516.6,4.389]
[1754139257814,0.9516,3516.7,3516.6,5.244029]
[1754139260195,0.001,3516.8,3516.6,5.27246555]
[1754139260444,0.001,3516.8,3516.7,1.0718939]
[1754139260646,0.001,3516.8,3516.7,2.5846939]
[1754139263234,0.001,3516.8,3516.7,6.0098939]
[1754139263617,0.4434,3516.8,3516.7,5.4598939]
[1754139263820,0.9342,3516.8,3516.7,5.4598939]
[1754139264532,0.4434,3516.8,3516.7,5.4598939]
[1754139264934,0.001,3516.8,3516.7,5.4598939]
[1754139265838,0.001,3516.8,3516.7,5.9506939]
[1754139267947,0.001,3516.8,3516.7,6.4299939]
[1754139268308,0.001,3516.8,3516.7,5.9506939]
[1754139271151,0.001,3516.8,3516.7,6.8943939]
[1754139271334,0.001,3516.8,3516.7,7.4443939]
[1754139273451,0.001,3516.8,3516.7,5.9506939]
[1754139273637,0.4434,3516.8,3516.7,4.8768]
[1754139273835,0.9342,3516.8,3516.7,4.8768]
[1754139274036,0.001,3516.8,3516.7,6.3705]
[1754139274428,0.001,3516.8,3516.7,5.9061]
[1754139275555,0.001,3516.8,3516.7,6.3705]
[1754139276249,0.001,3516.8,3516.7,7.97919734]
[1754139276555,0.001,3516.8,3516.7,7.51479734]
[1754139276918,0.001,3516.8,3516.7,7.97919734]
[1754139278157,0.001,3516.8,3516.7,12.24919734]
[1754139282525,0.001,3517.6,3516.7,12.24919734]
[1754139282871,0.001,3517.6,3517.4,5.4464734]
[1754139283057,0.001,3517.6,3517.5,4.385]
[1754139283647,0.001,3517.6,3517.5,5.239702]
[1754139286135,0.001,3518.0,3517.6,0.55]
[1754139286335,0.001,3518.0,3517.9,5.4464734]
[1754139286669,0.001,3518.0,3517.9,10.86852074]
[1754139287936,0.001,3518.0,3517.9,11.83862074]
[1754139288463,0.001,3518.0,3517.9,11.35932074]
[1754139289569,0.001,3518.0,3517.9,12.38862074]
[1754139290090,0.001,3518.0,3517.9,12.37372074]
[1754139290233,0.001,3518.0,3517.9,12.85302074]
[1754139290631,0.4908,3519.2,3518.0,0.55]
[1754139290880,0.001,3519.4,3518.9,5.4464734]
[1754139291037,0.001,3519.4,3518.9,9.8294734]
[1754139291437,0.9332,3519.3,3518.9,9.8294734]
[1754139291651,0.001,3519.4,3518.9,9.8294734]
[1754139291652,0.9332,3519.2,3518.9,9.8294734]
[1754139291959,0.9017,3519.1,3518.9,9.8294734]
[1754139292366,0.9027,3519.4,3518.9,9.8294734]
[1754139292537,0.4478,3519.3,3519.2,5.4464734]
[1754139292737,0.4478,3519.3,3519.2,9.8284734]
[1754139293040,0.9017,3519.3,3519.2,5.4464734]
[1754139293452,0.4478,3519.3,3519.2,5.9013734]
[1754139293657,0.001,3519.4,3519.2,5.9013734]
[1754139293834,0.9027,3519.4,3519.2,5.9013734]
[1754139294034,0.4478,3519.3,3519.2,5.9013734]
[1754139294477,0.001,3519.4,3519.2,5.9013734]
[1754139294678,0.001,3519.4,3519.3,5.91165208]
[1754139294877,0.001,3519.4,3519.3,5.88323734]
[1754139296340,0.001,3519.4,3519.3,6.32813734]
[1754139297042,0.001,3519.4,3519.3,5.88323734]
[1754139297352,0.001,3519.4,3519.2,5.9013734]
[1754139297353,0.001,3519.4,3519.2,0.4549]
[1754139297539,0.9027,3519.4,3519.3,4.381]
[1754139297744,0.9027,3519.4,3519.2,4.8359]
[1754139297984,0.9017,3519.3,3519.2,4.8359]
[1754139298904,0.001,3519.4,3519.2,4.8359]
[1754139298905,0.001,3519.4,3519.2,10.2823734]
[1754139299105,0.001,3519.4,3519.3,1.02823734]
[1754139299556,0.001,3519.4,3519.2,4.8359]
[1754139300398,0.9017,3519.3,3519.2,0.4549]
[1754139302076,0.001,3519.4,3519.2,0.4549]
[1754139302279,0.9017,3519.3,3519.2,0.4549]
[1754139302798,0.001,3519.4,3519.2,0.4549]
[1754139303001,0.9017,3519.3,3519.2,0.4549]
[1754139303701,0.9017,3519.3,3518.6,4.379]
[1754139303916,0.001,3519.4,3518.5,5.233569]
[1754139304235,0.9017,3519.2,3518.4,4.379]
[1754139304409,0.001,3519.4,3518.6,0.113951]
[1754139304703,30.0,3519.0,3518.6,0.113951]
[1754139304905,0.9017,3518.9,3518.6,0.113951]
[1754139305279,30.0,3519.2,3517.8,4.379]
[1754139305479,0.9017,3518.8,3517.8,4.379]
[1754139305702,0.9017,3518.7,3518.1,0.8547]
[1754139306112,3.0,3519.1,3518.1,0.8547]
[1754139306308,0.9017,3518.6,3518.1,0.8547]
[1754139306485,0.9017,3518.5,3518.1,0.8547]
[1754139306807,0.9017,3518.5,3517.5,0.002]
[1754139306808,3.0,3518.1,3517.5,0.002]
[1754139307031,0.02849018,3518.0,3517.5,0.002]
[1754139307198,3.0,3518.1,3517.5,0.002]
[1754139307399,30.0,3517.9,3517.5,0.002]
[1754139308131,0.9017,3517.8,3517.5,0.002]
[1754139308807,0.9017,3517.7,3517.5,0.002]
[1754139310255,0.4478,3517.7,3517.5,0.002]
[1754139310761,30.0,3517.9,3517.5,0.002]
[1754139311219,0.9017,3517.8,3517.5,0.002]
[1754139312037,0.4478,3517.7,3517.5,0.002]
[1754139312236,0.9017,3517.7,3517.5,0.002]
[1754139312435,0.9017,3517.6,3517.5,0.002]
[1754139312640,0.4478,3517.6,3517.5,0.002]
[1754139313217,0.9017,3517.6,3517.5,0.002]
[1754139313551,0.4539,3517.9,3517.5,0.002]
[1754139313709,0.9017,3517.9,3517.5,0.002]
[1754139313911,0.4478,3517.8,3517.5,0.002]
[1754139314112,0.9017,3517.8,3517.5,0.002]
[1754139314524,0.9017,3517.7,3517.5,0.002]
[1754139314708,30.0,3517.9,3517.5,0.002]
[1754139314911,0.4478,3517.8,3517.5,0.002]
[1754139315408,3.9017,3518.3,3517.5,0.4749]
[1754139315627,3.9017,3518.3,3517.5,0.002]
[1754139315628,0.9017,3518.2,3517.5,0.002]
[1754139315932,30.0,3518.1,3517.5,0.002]
[1754139316122,3.9017,3518.1,3517.5,0.002]
[1754139316461,30.0,3517.9,3517.5,0.002]
[1754139316874,30.0,3518.0,3517.5,0.002]
[1754139317028,0.9017,3517.8,3517.5,0.002]
[1754139317564,0.9017,3517.7,3517.5,0.002]
[1754139317935,0.4478,3517.6,3517.5,0.002]
[1754139319934,30.0,3517.9,3517.5,0.002]
[1754139320371,0.4478,3517.8,3517.5,0.002]
[1754139320667,0.9017,3517.8,3517.5,0.002]
[1754139321868,0.4478,3517.8,3517.5,0.002]
[1754139322041,5.3258,3518.1,3517.5,0.002]
[1754139322368,5.3258,3518.1,3517.6,0.4514]
[1754139322664,5.3258,3518.1,3517.7,0.4514]
[1754139323679,0.9478,3518.0,3517.5,0.002]
[1754139324190,0.9478,3517.9,3517.5,0.002]
[1754139324686,0.4636,3517.8,3517.5,0.002]
[1754139324886,0.4842,3517.9,3517.5,0.002]
[1754139325089,0.9478,3517.7,3517.5,0.002]
[1754139326796,5.3258,3518.1,3517.5,0.002]
[1754139326998,5.3258,3518.1,3517.5,0.4534]
[1754139327573,0.9478,3518.0,3517.5,0.002]
[1754139328086,0.9478,3517.9,3517.5,0.002]
[1754139328491,0.4636,3517.8,3517.5,0.002]
[1754139329504,0.4842,3517.8,3517.5,0.002]
[1754139329678,0.4636,3517.7,3517.5,0.002]
[1754139329877,0.9478,3517.7,3517.5,0.002]
[1754139330795,0.4636,3517.7,3517.5,0.002]
[1754139331008,0.9478,3518.0,3517.5,0.002]
[1754139331373,0.9478,3517.9,3517.5,0.002]
[1754139333403,4.378,3518.1,3517.5,0.4534]
[1754139333602,4.8416,3518.1,3517.6,0.4514]
[1754139333918,4.8416,3518.1,3517.7,0.4514]
[1754139334211,0.001,3518.7,3517.5,0.002]
[1754139334423,3.0,3518.5,3517.6,0.4514]
[1754139334714,0.001,3518.7,3517.6,0.4514]
[1754139334715,0.9478,3518.4,3517.6,0.4514]
[1754139335012,0.9478,3518.4,3517.6,0.91842847]
[1754139335186,30.0,3518.6,3518.0,5.44292028]
[1754139335513,0.4842,3518.6,3518.0,0.4514]
[1754139335667,3.001,3518.7,3518.0,0.4514]
[1754139336008,0.001,3518.7,3518.0,1.47943203]
[1754139336202,0.001,3518.7,3518.1,5.44292028]
[1754139336407,0.001,3518.7,3518.1,6.33292028]
[1754139336611,0.001,3518.7,3518.2,0.89]
[1754139336798,0.001,3518.7,3518.3,0.02842281]
[1754139337112,0.001,3518.7,3518.3,0.91842281]
[1754139337316,0.001,3518.7,3518.3,0.89]
[1754139337475,0.001,3518.7,3518.4,0.4514]
[1754139337676,0.001,3518.7,3518.4,9.28130242]
[1754139337899,0.001,3518.7,3518.5,0.0284212]
[1754139338101,0.001,3518.7,3518.5,0.9184212]
[1754139338497,0.001,3518.7,3518.6,0.89]
[1754139338700,0.001,3518.7,3518.6,2.37097236]
[1754139339190,0.001,3518.7,3518.6,2.48489436]
[1754139339582,0.001,3518.7,3518.6,2.51331475]
[1754139339786,0.001,3518.7,3518.6,2.48489436]
[1754139340508,0.001,3518.7,3518.6,2.51331475]
[1754139341378,0.001,3518.7,3518.6,2.48489436]
[1754139342350,0.001,3518.7,3518.6,0.93097236]
[1754139342497,0.9488,3518.7,3518.3,4.375]
[1754139343130,0.9488,3518.7,3518.3,4.8264]
[1754139343131,0.4646,3518.7,3518.3,4.8264]
[1754139343319,0.4646,3518.7,3518.2,4.375]
[1754139343320,0.9488,3518.7,3518.2,4.375]
[1754139343632,0.001,3518.7,3518.3,0.4514]
[1754139343932,0.001,3518.7,3518.4,0.48264]
[1754139344133,0.001,3518.7,3518.4,0.93404]
[1754139344494,0.001,3518.7,3518.4,0.48264]